[Event "Titled Tuesday Blitz April 18 Late 2023"]
[White "Horvath, Dominik"]
[Black "Bortnyk, Olexandr"]
[WhiteFideId "1642561"]
[BlackFideId "14120828"]
[WhiteElo "2407"]
[BlackElo "2734"]
[Result "0-1"]
[Round "05"]
[TimeControl "180+2"]
[Date "2023.04.18"]
[WhiteClock "0:00:14"]
[BlackClock "0:01:03"]

1. e4 {[%clk 0:02:57]}  Nf6 {[%clk 0:02:58]} 2. e5 {[%clk 0:02:56]}  Nd5 {[%clk 0:02:58]} 3. d4 {[%clk 0:02:53]}  d6 {[%clk 0:02:58]} 4. c4 {[%clk 0:02:49]}  Nb6 {[%clk 0:02:58]} 5. exd6 {[%clk 0:02:49]}  exd6 {[%clk 0:02:59]} 6. Nc3 {[%clk 0:02:49]}  Be7 {[%clk 0:03:00]} 7. Bd3 {[%clk 0:02:49]}  O-O {[%clk 0:03:00]} 8. Nge2 {[%clk 0:02:49]}  c6 {[%clk 0:03:01]} 9. O-O {[%clk 0:02:49]}  Na6 {[%clk 0:03:01]} 10. Bf4 {[%clk 0:02:48]}  Nb4 {[%clk 0:02:59]} 11. Bb1 {[%clk 0:02:36]}  d5 {[%clk 0:02:32]} 12. a3 {[%clk 0:02:33]}  Na6 {[%clk 0:02:32]} 13. Qd3 {[%clk 0:02:22]}  g6 {[%clk 0:02:28]} 14. cxd5 {[%clk 0:02:17]}  Nxd5 {[%clk 0:02:26]} 15. Nxd5 {[%clk 0:02:17]}  Qxd5 {[%clk 0:02:27]} 16. Nc3 {[%clk 0:02:13]}  Qh5 {[%clk 0:02:27]} 17. Qe3 {[%clk 0:02:01]}  Be6 {[%clk 0:02:13]} 18. Be5 {[%clk 0:01:51]}  Rad8 {[%clk 0:01:58]} 19. Ne4 {[%clk 0:01:45]}  f6 {[%clk 0:01:59]} 20. Bg3 {[%clk 0:01:40]}  Rfe8 {[%clk 0:01:44]} 21. Re1 {[%clk 0:01:14]}  f5 {[%clk 0:01:43]} 22. Nc3 {[%clk 0:00:52]}  Bg5 {[%clk 0:01:43]} 23. Qd3 {[%clk 0:00:20]}  f4 {[%clk 0:01:43]} 24. Rxe6 {[%clk 0:00:20]}  Rxe6 {[%clk 0:01:43]} 25. Ba2 {[%clk 0:00:20]}  Nc7 {[%clk 0:01:40]} 26. Qe4 {[%clk 0:00:19]}  Qg4 {[%clk 0:01:08]} 27. f3 {[%clk 0:00:14]}  Qf5 {[%clk 0:01:05]} 28. Qxf5 {[%clk 0:00:14]}  gxf5 {[%clk 0:01:06]} 29. Bxe6+ {[%clk 0:00:13]}  Nxe6 {[%clk 0:01:06]} 30. Bf2 {[%clk 0:00:14]}  Nxd4 {[%clk 0:01:05]} 31. Rd1 {[%clk 0:00:14]}  Ne2+ {[%clk 0:01:03]} 32. Kf1 {[%clk 0:00:14]}  Nxc3 {[%clk 0:01:04]} 33. Rxd8+ {[%clk 0:00:14]}  Bxd8 {[%clk 0:01:05]} 34. bxc3 {[%clk 0:00:15]}  a6 {[%clk 0:01:05]} 35. Ke2 {[%clk 0:00:15]}  b5 {[%clk 0:01:04]} 36. Bc5 {[%clk 0:00:13]}  Kf7 {[%clk 0:01:05]} 37. Kd3 {[%clk 0:00:13]}  Be7 {[%clk 0:01:05]} 38. Kd4 {[%clk 0:00:12]}  Bf6+ {[%clk 0:01:05]} 39. Kd3 {[%clk 0:00:13]}  Ke6 {[%clk 0:01:06]} 40. c4 {[%clk 0:00:13]}  Be7 {[%clk 0:01:00]} 41. Kd4 {[%clk 0:00:13]}  Bxc5+ {[%clk 0:01:00]} 42. Kxc5 {[%clk 0:00:14]}  Kd7 {[%clk 0:01:01]} 43. cxb5 {[%clk 0:00:13]}  axb5 {[%clk 0:01:01]} 44. a4 {[%clk 0:00:12]}  bxa4 {[%clk 0:01:01]} 45. Kb4 {[%clk 0:00:12]}  Kd6 {[%clk 0:01:02]} 46. Kxa4 {[%clk 0:00:13]}  Kc5 {[%clk 0:01:02]} 47. Kb3 {[%clk 0:00:13]}  Kd4 {[%clk 0:01:03]} 48. Kc2 {[%clk 0:00:14]}  Ke3 {[%clk 0:01:03]} 0-1


[Site "https://www.chess.com"]

[Event "Titled Tuesday Blitz April 18 Late 2023"]
[White "Zhigalko_Sergei"]
[Black "Sarana, Alexey"]
[BlackFideId "24133795"]
[WhiteElo "2911"]
[BlackElo "2714"]
[Result "1-0"]
[Round "05"]
[TimeControl "180+2"]
[Date "2023.04.18"]
[WhiteClock "0:00:07"]
[BlackClock "0:00:05"]

1. e4 {[%clk 0:03:00]}  c5 {[%clk 0:03:00]} 2. Nf3 {[%clk 0:03:00]}  d6 {[%clk 0:03:01]} 3. d4 {[%clk 0:03:01]}  cxd4 {[%clk 0:03:02]} 4. Qxd4 {[%clk 0:03:02]}  Nf6 {[%clk 0:03:01]} 5. Nc3 {[%clk 0:03:02]}  Nc6 {[%clk 0:03:00]} 6. Bb5 {[%clk 0:03:02]}  Bd7 {[%clk 0:03:01]} 7. Bxc6 {[%clk 0:03:03]}  Bxc6 {[%clk 0:03:01]} 8. Bg5 {[%clk 0:03:04]}  e6 {[%clk 0:03:02]} 9. O-O-O {[%clk 0:03:04]}  Be7 {[%clk 0:03:02]} 10. Rhe1 {[%clk 0:03:05]}  h6 {[%clk 0:03:01]} 11. Bh4 {[%clk 0:03:05]}  O-O {[%clk 0:02:58]} 12. Kb1 {[%clk 0:03:05]}  a6 {[%clk 0:02:53]} 13. Bg3 {[%clk 0:03:01]}  e5 {[%clk 0:02:49]} 14. Qd3 {[%clk 0:02:57]}  b5 {[%clk 0:02:43]} 15. Bh4 {[%clk 0:02:57]}  g5 {[%clk 0:02:28]} 16. Bg3 {[%clk 0:02:53]}  b4 {[%clk 0:02:28]} 17. Nd5 {[%clk 0:02:53]}  Nxd5 {[%clk 0:01:54]} 18. exd5 {[%clk 0:02:52]}  Bb5 {[%clk 0:01:55]} 19. Qd2 {[%clk 0:02:06]}  f5 {[%clk 0:01:53]} 20. h4 {[%clk 0:02:07]}  f4 {[%clk 0:01:48]} 21. Bh2 {[%clk 0:02:05]}  g4 {[%clk 0:01:46]} 22. Nxe5 {[%clk 0:02:01]}  dxe5 {[%clk 0:01:45]} 23. Rxe5 {[%clk 0:02:02]}  Bd6 {[%clk 0:01:30]} 24. Re6 {[%clk 0:01:29]}  Rf6 {[%clk 0:01:30]} 25. Rde1 {[%clk 0:01:05]}  Qf8 {[%clk 0:00:51]} 26. Rxf6 {[%clk 0:00:28]}  Qxf6 {[%clk 0:00:52]} 27. Re6 {[%clk 0:00:28]}  Qxh4 {[%clk 0:00:52]} 28. Qd4 {[%clk 0:00:22]}  Bf8 {[%clk 0:00:28]} 29. Qxf4 {[%clk 0:00:07]}  Qg5 {[%clk 0:00:19]} 30. Qe4 {[%clk 0:00:05]}  Kf7 {[%clk 0:00:11]} 31. Bf4 {[%clk 0:00:03]}  Qh5 {[%clk 0:00:12]} 32. Qh7+ {[%clk 0:00:03]}  Bg7 {[%clk 0:00:12]} 33. Re7+ {[%clk 0:00:03]}  Kxe7 {[%clk 0:00:12]} 34. Qxg7+ {[%clk 0:00:04]}  Qf7 {[%clk 0:00:08]} 35. Qe5+ {[%clk 0:00:03]}  Kd7 {[%clk 0:00:06]} 36. Qc7+ {[%clk 0:00:02]}  Ke8 {[%clk 0:00:05]} 37. Qe5+ {[%clk 0:00:03]}  Qe7 {[%clk 0:00:05]} 38. Qh8+ {[%clk 0:00:03]}  Qf8 {[%clk 0:00:03]} 39. Qe5+ {[%clk 0:00:03]}  Kf7 {[%clk 0:00:04]} 40. Qe6+ {[%clk 0:00:03]}  Kg7 {[%clk 0:00:02]} 41. Bxh6+ {[%clk 0:00:03]}  Kh7 {[%clk 0:00:01]} 42. Bxf8 {[%clk 0:00:04]}  Rxf8 {[%clk 0:00:02]} 43. b3 {[%clk 0:00:05]}  Rxf2 {[%clk 0:00:02]} 44. Qxg4 {[%clk 0:00:05]}  Rf1+ {[%clk 0:00:02]} 45. Kb2 {[%clk 0:00:05]}  Kh6 {[%clk 0:00:02]} 46. Qxb4 {[%clk 0:00:05]}  Rf7 {[%clk 0:00:03]} 47. Qh4+ {[%clk 0:00:05]}  Kg6 {[%clk 0:00:04]} 48. c4 {[%clk 0:00:06]}  Bd7 {[%clk 0:00:03]} 49. Ka3 {[%clk 0:00:06]}  Bf5 {[%clk 0:00:04]} 50. g4 {[%clk 0:00:06]}  Be4 {[%clk 0:00:04]} 51. Qh5+ {[%clk 0:00:06]}  Kf6 {[%clk 0:00:05]} 52. Qh6+ {[%clk 0:00:06]}  Ke5 {[%clk 0:00:05]} 53. Qe3 {[%clk 0:00:06]}  Rf3 {[%clk 0:00:05]} 54. Qb6 {[%clk 0:00:06]}  Rg3 {[%clk 0:00:04]} 55. Qc7+ {[%clk 0:00:06]}  Kd4 {[%clk 0:00:05]} 56. Qxg3 {[%clk 0:00:07]} 1-0


[Site "https://www.chess.com"]

[Event "Titled Tuesday Blitz April 18 Late 2023"]
[White "Quesada Perez, Yasser"]
[Black "Deac, Bogdan-Daniel"]
[WhiteFideId "3509362"]
[BlackFideId "1226380"]
[WhiteElo "2496"]
[BlackElo "2649"]
[Result "0-1"]
[Round "05"]
[TimeControl "180+2"]
[Date "2023.04.18"]
[WhiteClock "0:00:02"]
[BlackClock "0:00:05"]

1. d4 {[%clk 0:03:00]}  Nf6 {[%clk 0:02:59]} 2. Nf3 {[%clk 0:02:59]}  d5 {[%clk 0:02:59]} 3. Bf4 {[%clk 0:03:00]}  c5 {[%clk 0:02:59]} 4. e3 {[%clk 0:03:00]}  Nc6 {[%clk 0:03:00]} 5. Nbd2 {[%clk 0:03:00]}  Nh5 {[%clk 0:03:00]} 6. Be5 {[%clk 0:02:57]}  e6 {[%clk 0:03:00]} 7. Bb5 {[%clk 0:02:48]}  Bd7 {[%clk 0:02:57]} 8. a4 {[%clk 0:02:34]}  cxd4 {[%clk 0:02:49]} 9. exd4 {[%clk 0:02:32]}  f6 {[%clk 0:02:45]} 10. Bg3 {[%clk 0:02:29]}  g6 {[%clk 0:02:44]} 11. O-O {[%clk 0:02:28]}  a6 {[%clk 0:02:34]} 12. Bxc6 {[%clk 0:02:27]}  bxc6 {[%clk 0:02:35]} 13. Re1 {[%clk 0:02:27]}  Nxg3 {[%clk 0:02:34]} 14. hxg3 {[%clk 0:02:27]}  Bd6 {[%clk 0:02:35]} 15. Nb3 {[%clk 0:02:10]}  Qe7 {[%clk 0:02:23]} 16. Qd2 {[%clk 0:02:05]}  O-O {[%clk 0:02:20]} 17. Re2 {[%clk 0:01:55]}  Rfe8 {[%clk 0:02:10]} 18. Rae1 {[%clk 0:01:53]}  Rab8 {[%clk 0:02:03]} 19. Qd3 {[%clk 0:01:47]}  Bc8 {[%clk 0:01:38]} 20. g4 {[%clk 0:01:47]}  Rb4 {[%clk 0:01:01]} 21. g5 {[%clk 0:01:40]}  fxg5 {[%clk 0:00:56]} 22. a5 {[%clk 0:01:39]}  Rb5 {[%clk 0:00:40]} 23. Ne5 {[%clk 0:01:34]}  Bd7 {[%clk 0:00:24]} 24. Re3 {[%clk 0:01:14]}  Bb4 {[%clk 0:00:18]} 25. R1e2 {[%clk 0:01:11]}  c5 {[%clk 0:00:11]} 26. dxc5 {[%clk 0:00:58]}  Bxa5 {[%clk 0:00:10]} 27. c6 {[%clk 0:00:47]}  Bc8 {[%clk 0:00:10]} 28. Nxg6 {[%clk 0:00:43]}  Qg7 {[%clk 0:00:08]} 29. Ne5 {[%clk 0:00:39]}  Bc7 {[%clk 0:00:07]} 30. Qd4 {[%clk 0:00:23]}  a5 {[%clk 0:00:06]} 31. Qg4 {[%clk 0:00:21]}  Rb4 {[%clk 0:00:05]} 32. Nd4 {[%clk 0:00:17]}  Rxb2 {[%clk 0:00:04]} 33. Qh5 {[%clk 0:00:15]}  Rb1+ {[%clk 0:00:04]} 34. Kh2 {[%clk 0:00:15]}  Rf8 {[%clk 0:00:05]} 35. Nf3 {[%clk 0:00:11]}  h6 {[%clk 0:00:05]} 36. g3 {[%clk 0:00:07]}  Bb6 {[%clk 0:00:05]} 37. Rb3 {[%clk 0:00:06]}  Rxb3 {[%clk 0:00:04]} 38. cxb3 {[%clk 0:00:07]}  Bc7 {[%clk 0:00:05]} 39. Kg2 {[%clk 0:00:07]}  d4 {[%clk 0:00:04]} 40. Ng4 {[%clk 0:00:07]}  Kh7 {[%clk 0:00:04]} 41. Nfe5 {[%clk 0:00:03]}  Rf5 {[%clk 0:00:03]} 42. f3 {[%clk 0:00:02]}  Ba6 {[%clk 0:00:03]} 43. Rd2 {[%clk 0:00:01]}  Bxe5 {[%clk 0:00:03]} 44. Nxe5 {[%clk 0:00:02]}  Rxe5 {[%clk 0:00:04]} 45. Rxd4 {[%clk 0:00:02]}  Re2+ {[%clk 0:00:04]} 46. Kh3 {[%clk 0:00:02]}  Qxd4 {[%clk 0:00:04]} 47. Qf7+ {[%clk 0:00:02]}  Qg7 {[%clk 0:00:05]} 0-1


[Site "https://www.chess.com"]

[Event "Titled Tuesday Blitz April 18 Late 2023"]
[White "Eljanov, Pavel"]
[Black "Leenhouts, Koen"]
[WhiteFideId "14102951"]
[BlackFideId "1008439"]
[WhiteElo "2598"]
[BlackElo "2409"]
[Result "0-1"]
[Round "05"]
[TimeControl "180+2"]
[Date "2023.04.18"]
[WhiteClock "0:00:04"]
[BlackClock "0:00:01"]

1. e4 {[%clk 0:02:59]}  c5 {[%clk 0:02:56]} 2. Nf3 {[%clk 0:02:59]}  e6 {[%clk 0:02:56]} 3. d4 {[%clk 0:02:58]}  cxd4 {[%clk 0:02:57]} 4. Nxd4 {[%clk 0:02:59]}  Nc6 {[%clk 0:02:57]} 5. Nc3 {[%clk 0:02:59]}  Qc7 {[%clk 0:02:58]} 6. f4 {[%clk 0:02:57]}  a6 {[%clk 0:02:56]} 7. Nxc6 {[%clk 0:02:57]}  bxc6 {[%clk 0:02:54]} 8. Bd3 {[%clk 0:02:57]}  d5 {[%clk 0:02:53]} 9. O-O {[%clk 0:02:56]}  Nf6 {[%clk 0:02:52]} 10. Qe2 {[%clk 0:02:54]}  Be7 {[%clk 0:02:48]} 11. Kh1 {[%clk 0:02:51]}  O-O {[%clk 0:02:13]} 12. Bd2 {[%clk 0:02:50]}  Bb7 {[%clk 0:01:56]} 13. Rae1 {[%clk 0:02:51]}  Rfe8 {[%clk 0:01:47]} 14. e5 {[%clk 0:02:24]}  Nd7 {[%clk 0:01:45]} 15. f5 {[%clk 0:02:23]}  exf5 {[%clk 0:01:31]} 16. Bxf5 {[%clk 0:02:24]}  Nf8 {[%clk 0:01:22]} 17. Qg4 {[%clk 0:02:17]}  Bc8 {[%clk 0:01:14]} 18. Ne2 {[%clk 0:01:56]}  Bxf5 {[%clk 0:01:03]} 19. Rxf5 {[%clk 0:01:56]}  Bc5 {[%clk 0:00:53]} 20. Ng3 {[%clk 0:01:29]}  Ng6 {[%clk 0:00:48]} 21. Rg5 {[%clk 0:01:11]}  Be7 {[%clk 0:00:43]} 22. Rh5 {[%clk 0:01:10]}  Rab8 {[%clk 0:00:35]} 23. Bc3 {[%clk 0:01:09]}  c5 {[%clk 0:00:20]} 24. e6 {[%clk 0:01:09]}  Bd6 {[%clk 0:00:16]} 25. exf7+ {[%clk 0:00:48]}  Qxf7 {[%clk 0:00:15]} 26. Rf1 {[%clk 0:00:49]}  Qe6 {[%clk 0:00:14]} 27. Nf5 {[%clk 0:00:45]}  d4 {[%clk 0:00:11]} 28. Bd2 {[%clk 0:00:45]}  Bf8 {[%clk 0:00:06]} 29. Qh3 {[%clk 0:00:43]}  Qe2 {[%clk 0:00:06]} 30. Ng3 {[%clk 0:00:32]}  Qxd2 {[%clk 0:00:05]} 31. Rxh7 {[%clk 0:00:32]}  Qg5 {[%clk 0:00:04]} 32. Rh5 {[%clk 0:00:22]}  Qe3 {[%clk 0:00:04]} 33. Qf5 {[%clk 0:00:20]}  Qe6 {[%clk 0:00:03]} 34. Qd3 {[%clk 0:00:18]}  Rxb2 {[%clk 0:00:03]} 35. Nf5 {[%clk 0:00:18]}  Rb7 {[%clk 0:00:01]} 36. Qh3 {[%clk 0:00:11]}  Rf7 {[%clk 0:00:02]} 37. Qg3 {[%clk 0:00:05]}  Qe2 {[%clk 0:00:01]} 38. Nh6+ {[%clk 0:00:05]}  gxh6 {[%clk 0:00:01]} 39. Qxg6+ {[%clk 0:00:06]}  Rg7 {[%clk 0:00:01]} 40. Qf5 {[%clk 0:00:04]}  Qxg2# {[%clk 0:00:01]} 0-1


[Site "https://www.chess.com"]

[Event "Titled Tuesday Blitz April 18 Late 2023"]
[White "Bluebaum, Matthias"]
[Black "Korchmar, Vasiliy"]
[WhiteFideId "24651516"]
[BlackFideId "24131750"]
[WhiteElo "2638"]
[BlackElo "2370"]
[Result "1-0"]
[Round "05"]
[TimeControl "180+2"]
[Date "2023.04.18"]
[WhiteClock "0:02:05"]
[BlackClock "0:00:11"]

1. d4 {[%clk 0:03:00]}  d5 {[%clk 0:03:00]} 2. c4 {[%clk 0:03:01]}  c6 {[%clk 0:03:00]} 3. Nf3 {[%clk 0:03:01]}  Nf6 {[%clk 0:03:01]} 4. Nc3 {[%clk 0:03:02]}  e6 {[%clk 0:03:01]} 5. Qc2 {[%clk 0:03:02]}  Nbd7 {[%clk 0:02:58]} 6. e4 {[%clk 0:03:03]}  dxe4 {[%clk 0:02:51]} 7. Nxe4 {[%clk 0:03:03]}  Nxe4 {[%clk 0:02:27]} 8. Qxe4 {[%clk 0:03:04]}  e5 {[%clk 0:02:27]} 9. Bd2 {[%clk 0:02:51]}  Be7 {[%clk 0:02:12]} 10. Nxe5 {[%clk 0:02:45]}  Nf6 {[%clk 0:02:02]} 11. Qe3 {[%clk 0:02:43]}  O-O {[%clk 0:01:59]} 12. Bd3 {[%clk 0:02:42]}  c5 {[%clk 0:01:51]} 13. d5 {[%clk 0:02:41]}  Bd6 {[%clk 0:01:44]} 14. O-O {[%clk 0:02:38]}  Re8 {[%clk 0:01:44]} 15. f4 {[%clk 0:02:38]}  b5 {[%clk 0:01:43]} 16. b3 {[%clk 0:02:13]}  bxc4 {[%clk 0:01:43]} 17. bxc4 {[%clk 0:02:13]}  Ng4 {[%clk 0:01:34]} 18. Qh3 {[%clk 0:02:13]}  Nf6 {[%clk 0:01:24]} 19. Qh4 {[%clk 0:02:06]}  Ba6 {[%clk 0:00:32]} 20. Bc3 {[%clk 0:02:05]}  h6 {[%clk 0:00:28]} 21. Nc6 {[%clk 0:02:03]}  Qd7 {[%clk 0:00:18]} 22. Bxf6 {[%clk 0:02:03]}  gxf6 {[%clk 0:00:18]} 23. Qxh6 {[%clk 0:02:03]}  f5 {[%clk 0:00:14]} 24. Qg5+ {[%clk 0:02:04]}  Kf8 {[%clk 0:00:11]} 25. Bxf5 {[%clk 0:02:05]} 1-0


[Site "https://www.chess.com"]

[Event "Titled Tuesday Blitz April 18 Late 2023"]
[White "Mihajlov, Sebastian"]
[Black "Paravyan, David"]
[WhiteFideId "1512110"]
[BlackFideId "4194985"]
[WhiteElo "2478"]
[BlackElo "2563"]
[Result "0-1"]
[Round "05"]
[TimeControl "180+2"]
[Date "2023.04.18"]
[WhiteClock "0:00:03"]
[BlackClock "0:00:04"]

1. e4 {[%clk 0:02:41]}  c5 {[%clk 0:02:55]} 2. Nf3 {[%clk 0:02:33]}  Nc6 {[%clk 0:02:55]} 3. d4 {[%clk 0:02:34]}  cxd4 {[%clk 0:02:54]} 4. Nxd4 {[%clk 0:02:35]}  Nf6 {[%clk 0:02:54]} 5. Nc3 {[%clk 0:02:35]}  h5 {[%clk 0:02:55]} 6. Bg5 {[%clk 0:02:32]}  Qa5 {[%clk 0:02:52]} 7. Bxf6 {[%clk 0:02:31]}  gxf6 {[%clk 0:02:53]} 8. Be2 {[%clk 0:02:22]}  Rg8 {[%clk 0:02:51]} 9. g3 {[%clk 0:02:20]}  h4 {[%clk 0:02:48]} 10. Nb3 {[%clk 0:02:18]}  Qe5 {[%clk 0:02:33]} 11. Qd2 {[%clk 0:02:17]}  e6 {[%clk 0:02:17]} 12. O-O-O {[%clk 0:02:17]}  Bb4 {[%clk 0:02:14]} 13. f4 {[%clk 0:02:07]}  Bxc3 {[%clk 0:02:13]} 14. bxc3 {[%clk 0:02:08]}  Qxe4 {[%clk 0:02:08]} 15. Nc5 {[%clk 0:01:40]}  Qd5 {[%clk 0:01:40]} 16. Qxd5 {[%clk 0:01:27]}  exd5 {[%clk 0:01:41]} 17. Rxd5 {[%clk 0:01:21]}  Ke7 {[%clk 0:01:34]} 18. Re1 {[%clk 0:01:05]}  d6 {[%clk 0:01:33]} 19. Ba6+ {[%clk 0:00:52]}  Kf8 {[%clk 0:01:01]} 20. Bxb7 {[%clk 0:00:39]}  Bxb7 {[%clk 0:00:59]} 21. Nxb7 {[%clk 0:00:40]}  hxg3 {[%clk 0:00:58]} 22. hxg3 {[%clk 0:00:41]}  Rxg3 {[%clk 0:00:58]} 23. Nxd6 {[%clk 0:00:34]}  Rxc3 {[%clk 0:00:56]} 24. Rh5 {[%clk 0:00:20]}  Rg3 {[%clk 0:00:40]} 25. Rh8+ {[%clk 0:00:17]}  Rg8 {[%clk 0:00:40]} 26. Rh6 {[%clk 0:00:18]}  Rg6 {[%clk 0:00:37]} 27. Rh8+ {[%clk 0:00:15]}  Rg8 {[%clk 0:00:38]} 28. Rh6 {[%clk 0:00:16]}  Rd8 {[%clk 0:00:27]} 29. Rxf6 {[%clk 0:00:16]}  Rg6 {[%clk 0:00:28]} 30. Rxg6 {[%clk 0:00:08]}  fxg6 {[%clk 0:00:28]} 31. Nc4 {[%clk 0:00:07]}  Rd4 {[%clk 0:00:17]} 32. Ne5 {[%clk 0:00:07]}  Ne7 {[%clk 0:00:14]} 33. Re3 {[%clk 0:00:04]}  Rxf4 {[%clk 0:00:12]} 34. Ra3 {[%clk 0:00:05]}  g5 {[%clk 0:00:08]} 35. Rxa7 {[%clk 0:00:05]}  g4 {[%clk 0:00:08]} 36. Kd2 {[%clk 0:00:05]}  g3 {[%clk 0:00:08]} 37. Rxe7 {[%clk 0:00:03]}  Rf2+ {[%clk 0:00:08]} 38. Ke3 {[%clk 0:00:04]}  Kxe7 {[%clk 0:00:08]} 39. Ng6+ {[%clk 0:00:03]}  Kf6 {[%clk 0:00:06]} 40. Nf4 {[%clk 0:00:04]}  Kf5 {[%clk 0:00:05]} 41. Nd3 {[%clk 0:00:02]}  Rxc2 {[%clk 0:00:04]} 42. Kf3 {[%clk 0:00:03]}  g2 {[%clk 0:00:04]} 0-1


[Site "https://www.chess.com"]

[Event "Titled Tuesday Blitz April 18 Late 2023"]
[White "Anton Guijarro, David"]
[Black "Sieciechowicz, Marcin"]
[WhiteFideId "2285525"]
[BlackFideId "1130170"]
[WhiteElo "2618"]
[BlackElo "2302"]
[Result "1/2-1/2"]
[Round "05"]
[TimeControl "180+2"]
[Date "2023.04.18"]
[WhiteClock "0:00:02"]
[BlackClock "0:00:08"]

1. d4 {[%clk 0:03:00]}  Nf6 {[%clk 0:02:59]} 2. Nf3 {[%clk 0:03:01]}  d5 {[%clk 0:02:59]} 3. e3 {[%clk 0:03:01]}  c6 {[%clk 0:02:55]} 4. c4 {[%clk 0:03:01]}  Bf5 {[%clk 0:02:55]} 5. Nc3 {[%clk 0:03:01]}  e6 {[%clk 0:02:55]} 6. Nh4 {[%clk 0:03:02]}  Bg6 {[%clk 0:02:55]} 7. Nxg6 {[%clk 0:03:01]}  hxg6 {[%clk 0:02:56]} 8. h3 {[%clk 0:03:01]}  Nbd7 {[%clk 0:02:56]} 9. Bd3 {[%clk 0:03:01]}  Bd6 {[%clk 0:02:57]} 10. O-O {[%clk 0:03:01]}  O-O {[%clk 0:02:57]} 11. Qc2 {[%clk 0:02:58]}  dxc4 {[%clk 0:02:57]} 12. Bxc4 {[%clk 0:02:58]}  e5 {[%clk 0:02:58]} 13. Qxg6 {[%clk 0:02:56]}  exd4 {[%clk 0:02:51]} 14. exd4 {[%clk 0:02:56]}  c5 {[%clk 0:02:40]} 15. Rd1 {[%clk 0:01:14]}  cxd4 {[%clk 0:02:14]} 16. Rxd4 {[%clk 0:01:14]}  Ne5 {[%clk 0:02:14]} 17. Qf5 {[%clk 0:01:09]}  Nxc4 {[%clk 0:01:26]} 18. Rxc4 {[%clk 0:01:10]}  Rc8 {[%clk 0:01:10]} 19. Rxc8 {[%clk 0:01:06]}  Qxc8 {[%clk 0:01:11]} 20. Qf3 {[%clk 0:01:06]}  Be5 {[%clk 0:01:08]} 21. Bd2 {[%clk 0:01:02]}  Rd8 {[%clk 0:01:06]} 22. Be1 {[%clk 0:01:02]}  b6 {[%clk 0:01:00]} 23. Rd1 {[%clk 0:00:59]}  Rxd1 {[%clk 0:01:00]} 24. Qxd1 {[%clk 0:01:00]}  Qe6 {[%clk 0:00:59]} 25. a3 {[%clk 0:00:57]}  g6 {[%clk 0:00:59]} 26. Bd2 {[%clk 0:00:50]}  Qd6 {[%clk 0:00:52]} 27. Qe2 {[%clk 0:00:49]}  Kg7 {[%clk 0:00:49]} 28. Nb5 {[%clk 0:00:29]}  Qd5 {[%clk 0:00:48]} 29. Bc3 {[%clk 0:00:27]}  Bxc3 {[%clk 0:00:43]} 30. Nxc3 {[%clk 0:00:28]}  Qb3 {[%clk 0:00:42]} 31. g4 {[%clk 0:00:28]}  Nd7 {[%clk 0:00:30]} 32. Qd2 {[%clk 0:00:25]}  Nc5 {[%clk 0:00:19]} 33. Qd4+ {[%clk 0:00:20]}  Kg8 {[%clk 0:00:14]} 34. Qd2 {[%clk 0:00:19]}  Ne6 {[%clk 0:00:13]} 35. Kg2 {[%clk 0:00:18]}  Qc4 {[%clk 0:00:13]} 36. Ne2 {[%clk 0:00:16]}  Qc6+ {[%clk 0:00:13]} 37. f3 {[%clk 0:00:17]}  Qc5 {[%clk 0:00:12]} 38. h4 {[%clk 0:00:16]}  Qe5 {[%clk 0:00:13]} 39. b4 {[%clk 0:00:16]}  Kh7 {[%clk 0:00:13]} 40. f4 {[%clk 0:00:09]}  Qe4+ {[%clk 0:00:13]} 41. Kg3 {[%clk 0:00:10]}  Kg8 {[%clk 0:00:11]} 42. Nc3 {[%clk 0:00:09]}  Qc6 {[%clk 0:00:11]} 43. Qe3 {[%clk 0:00:09]}  Qc4 {[%clk 0:00:11]} 44. Ne4 {[%clk 0:00:10]}  Kg7 {[%clk 0:00:08]} 45. f5 {[%clk 0:00:09]}  gxf5 {[%clk 0:00:08]} 46. gxf5 {[%clk 0:00:10]}  Nd4 {[%clk 0:00:09]} 47. f6+ {[%clk 0:00:09]}  Kh7 {[%clk 0:00:09]} 48. Nd6 {[%clk 0:00:02]}  Qd5 {[%clk 0:00:04]} 49. Qe4+ {[%clk 0:00:03]}  Qxe4 {[%clk 0:00:03]} 50. Nxe4 {[%clk 0:00:04]}  Nc2 {[%clk 0:00:04]} 51. Kf4 {[%clk 0:00:04]}  Nxa3 {[%clk 0:00:04]} 52. Ke5 {[%clk 0:00:03]}  a5 {[%clk 0:00:05]} 53. bxa5 {[%clk 0:00:03]}  bxa5 {[%clk 0:00:06]} 54. h5 {[%clk 0:00:03]}  Nc4+ {[%clk 0:00:05]} 55. Kd5 {[%clk 0:00:03]}  Ne3+ {[%clk 0:00:06]} 56. Kc5 {[%clk 0:00:02]}  Ng4 {[%clk 0:00:06]} 57. Ng5+ {[%clk 0:00:01]}  Kh6 {[%clk 0:00:06]} 58. Nxf7+ {[%clk 0:00:01]}  Kxh5 {[%clk 0:00:06]} 59. Nd6 {[%clk 0:00:01]}  Nxf6 {[%clk 0:00:07]} 60. Kb5 {[%clk 0:00:02]}  Ne4 {[%clk 0:00:08]} 61. Kxa5 {[%clk 0:00:02]} 1/2-1/2


[Site "https://www.chess.com"]